fUST/lending_fUST_20240704
["ID","MTS","AMOUNT","RATE_DAILY","PERIOD"]
[331101455,1720081839837,-1179.4,0.00014177,2]
[331101456,1720081839848,-500.0,0.00014177,2]
[331101457,1720081839859,-500.0,0.00014177,2]
[331101458,1720081839870,-696.5,0.00014177,2]
[331101459,1720081839881,-500.0,0.00014177,2]
[331101460,1720081839892,-500.0,0.00014177,2]
[331101461,1720081839902,-600.79,0.00014177,2]
[331101462,1720081839912,-500.0,0.00014177,2]
[331101463,1720081839922,-500.0,0.00014177,2]
[331101464,1720081839932,-500.0,0.00014177,2]
[331101465,1720081839943,-500.0,0.00014177,2]
[331101466,1720081839958,-500.0,0.00014177,2]
[331101467,1720081839968,-500.0,0.00014177,2]
[331101468,1720081839978,-500.0,0.00014177,2]
[331101469,1720081839988,-500.0,0.00014177,2]
[331101470,1720081839999,-556.04,0.00014177,2]
[331101471,1720081840008,-560.01,0.00014177,2]
[331101472,1720081840018,-500.0,0.00014177,2]
[331101473,1720081840028,-500.0,0.00014177,2]
[331101474,1720081840038,-500.0,0.00014177,2]
[331101475,1720081840048,-500.0,0.00014177,2]
[331101476,1720081840059,-500.0,0.00014177,2]
[331101477,1720081840069,-4913.11,0.00014177,2]
[331101478,1720081840079,-502.54265345,0.00014177,2]
[331101479,1720081840089,-500.0,0.00014177,2]
[331101480,1720081840099,-500.0,0.00014177,2]
[331101481,1720081840108,-713.73,0.00014177,2]
[331101482,1720081840119,-500.0,0.00014177,2]
[331101483,1720081840130,-500.0,0.00014177,2]
[331101484,1720081840140,-814.41,0.00014177,2]
[331101485,1720081840151,-500.0,0.00014177,2]
[331101486,1720081840162,-500.0,0.00014177,2]
[331101487,1720081840173,-500.0,0.00014177,2]
[331101488,1720081840183,-500.0,0.00014177,2]
[331101489,1720081840194,-501.87428358,0.00014177,2]
[331101492,1720081840207,-500.0,0.00014177,2]
[331101494,1720081840219,-500.0,0.00014177,2]
[331101497,1720081840229,-500.0,0.00014177,2]
[331101500,1720081840239,-500.0,0.00014177,2]
[331101501,1720081840253,-500.0,0.00014177,2]
[331101502,1720081840264,-500.0,0.00014177,2]
[331101503,1720081840274,-500.0,0.00014177,2]
[331101504,1720081840284,-304.44703318,0.00014177,2]
[331101505,1720081840295,-434.11308272,0.00014177,2]
[331101506,1720081840305,-178.61289237,0.00014177,2]
[331101507,1720081840315,-13373.67841182,0.00014178,2]
[331101508,1720081840326,-500.0,0.00014178,2]
[331101510,1720081840336,-500.0,0.00014178,2]
[331101512,1720081840346,-500.0,0.00014178,2]
[331101514,1720081840356,-500.0,0.00014178,2]
[331101516,1720081840366,-500.0,0.00014178,2]
[331101518,1720081840377,-500.0,0.00014178,2]
[331101520,1720081840386,-500.0,0.00014178,2]
[331101522,1720081840396,-374.90378399,0.00014178,2]
[331101523,1720081840407,-574.3,0.00014178,2]
[331101524,1720081840416,-500.0,0.00014178,2]
[331101526,1720081840426,-500.0,0.00014178,2]
[331101527,1720081840436,-500.0,0.00014178,2]
[331101529,1720081840446,-566.73,0.00014178,2]
[331101531,1720081840459,-500.0,0.00014178,2]
[331101533,1720081840472,-655.68,0.00014178,2]
[331101534,1720081840483,-510.72346099,0.00014178,2]
[331101535,1720081840494,-500.0,0.00014178,2]
[331101536,1720081840504,-500.0,0.00014178,2]
[331101537,1720081840515,-500.0,0.00014178,2]
[331101539,1720081840524,-500.0,0.00014178,2]
[331101541,1720081840534,-500.0,0.00014178,2]
[331101543,1720081840545,-500.0,0.00014178,2]
[331101544,1720081840560,-500.0,0.00014178,2]
[331101546,1720081840571,-488.16182448,0.00014178,2]
[331101548,1720081840581,-500.0,0.00014178,2]
[331101550,1720081840593,-500.0,0.00014178,2]
[331101552,1720081840604,-500.0,0.00014178,2]
[331101553,1720081840614,-500.0,0.00014178,2]
[331101559,1720081840816,-500.0,0.00014178,2]
[331101560,1720081840827,-500.0,0.00014178,2]
[331101561,1720081840838,-500.0,0.00014178,2]
[331101562,1720081840849,-9042.71,0.00014178,2]
[331101563,1720081840859,-500.0,0.00014178,2]
[331101565,1720081840869,-500.0,0.00014178,2]
[331101567,1720081840879,-500.0,0.00014178,2]
[331101569,1720081840890,-500.0,0.00014178,2]
[331101570,1720081840901,-500.0,0.00014178,2]
[331101572,1720081840912,-500.0,0.00014178,2]
[331101574,1720081840922,-500.0,0.00014178,2]
[331101575,1720081840934,-500.0,0.00014178,2]
[331101577,1720081840945,-505.15109191,0.00014178,2]
[331101579,1720081840957,-504.65022156,0.00014178,2]
[331101581,1720081840968,-500.0,0.00014178,2]
[331101582,1720081840978,-500.0,0.00014178,2]
[331101583,1720081840988,-500.0,0.00014178,2]
[331101585,1720081840998,-500.0,0.00014178,2]
[331101586,1720081841009,-500.0,0.00014178,2]
[331101587,1720081841020,-503.9261028,0.00014178,2]
[331101588,1720081841030,-500.0,0.00014178,2]
[331101589,1720081841041,-500.0,0.00014178,2]
[331101590,1720081841052,-500.0,0.00014178,2]
[331101591,1720081841062,-196.72643893,0.00014178,2]
[331101592,1720081841072,-500.0,0.00014178,2]
[331101593,1720081841082,-500.0,0.00014178,2]
[331101594,1720081841092,-504.04495603,0.00014178,2]
[331101595,1720081841102,-799.86,0.00014178,2]
[331101596,1720081841112,-500.0,0.00014178,2]
[331101597,1720081841122,-500.0,0.00014178,2]
[331101598,1720081841132,-500.0,0.00014178,2]
[331101599,1720081841142,-505.75011291,0.00014178,2]
[331101600,1720081841152,-319.83636117,0.00014178,2]
[331101601,1720081841162,-500.0,0.00014178,2]
[331101602,1720081841173,-500.0,0.00014178,2]
[331101603,1720081841182,-500.0,0.00014178,2]
[331101604,1720081841192,-500.0,0.00014178,2]
[331101605,1720081841202,-502.05741685,0.00014178,2]
[331101606,1720081841214,-512.11044345,0.00014178,2]
[331101607,1720081841225,-500.0,0.00014178,2]
[331101608,1720081841235,-269.25993227,0.00014178,2]
[331101609,1720081841245,-500.0,0.00014178,2]
[331101610,1720081841256,-500.0,0.00014178,2]
[331101611,1720081841266,-500.0,0.00014178,2]
[331101612,1720081841276,-500.0,0.00014178,2]
[331101613,1720081841286,-500.0,0.00014178,2]
[331101614,1720081841297,-717.89,0.00014178,2]
[331101615,1720081841307,-500.0,0.00014178,2]
[331101616,1720081841317,-500.0,0.00014178,2]
[331101617,1720081841326,-185.76252799,0.00014178,2]
[331101618,1720081841336,-500.0,0.00014178,2]
[331101619,1720081841346,-500.0,0.00014178,2]
[331101620,1720081841356,-500.0,0.00014178,2]
[331101621,1720081841365,-500.0,0.00014178,2]
[331101622,1720081841375,-500.0,0.00014178,2]
[331101623,1720081841385,-511.3427263,0.00014178,2]
[331101624,1720081841394,-500.0,0.00014178,2]
[331101625,1720081841404,-437.76794255,0.00014178,2]
[331101626,1720081841414,-861.67,0.00014178,2]
[331101627,1720081841423,-500.0,0.00014178,2]
[331101628,1720081841433,-500.0,0.00014178,2]
[331101629,1720081841443,-500.0,0.00014178,2]
[331101630,1720081841452,-500.0,0.00014178,2]
[331101631,1720081841467,-509.64652439,0.00014178,2]
[331101632,1720081841477,-500.0,0.00014178,2]
[331101633,1720081841489,-506.76700847,0.00014178,2]
[331101634,1720081841499,-500.0,0.00014178,2]
[331101635,1720081841509,-518.52413287,0.00014178,2]
[331101636,1720081841519,-500.0,0.00014178,2]
[331101637,1720081841529,-500.0,0.00014178,2]
[331101638,1720081841538,-500.0,0.00014178,2]
[331101639,1720081841548,-501.98538086,0.00014178,2]
[331101640,1720081841559,-441.89663203,0.00014178,2]
[331101641,1720081841571,-500.0,0.00014178,2]
[331101642,1720081841581,-516.25482664,0.00014178,2]
[331101643,1720081841591,-500.0,0.00014178,2]
[331101644,1720081841600,-500.0,0.00014178,2]
[331101645,1720081841610,-500.0,0.00014178,2]
[331101646,1720081841620,-500.0,0.00014178,2]
[331101647,1720081841630,-500.0,0.00014178,2]
[331101648,1720081841640,-500.0,0.00014178,2]
[331101649,1720081841650,-1000.0,0.00014178,2]
[331101650,1720081841660,-500.0,0.00014178,2]
[331101651,1720081841670,-500.0,0.00014178,2]
[331101652,1720081841680,-500.0,0.00014178,2]
[331101653,1720081841689,-500.0,0.00014178,2]
[331101654,1720081841699,-500.0,0.00014178,2]
[331101655,1720081841711,-500.0,0.00014178,2]
[331101656,1720081841722,-500.0,0.00014178,2]
[331101657,1720081841732,-503.7022216,0.00014178,2]
[331101658,1720081841742,-505.14767051,0.00014178,2]
[331101659,1720081841751,-500.0,0.00014178,2]
[331101660,1720081841761,-500.0,0.00014178,2]
[331101661,1720081841771,-500.0,0.00014178,2]
[331101662,1720081841781,-500.0,0.00014178,2]
[331101663,1720081841791,-367.40365598,0.00014178,2]
[331101664,1720081841801,-500.0,0.00014178,2]
[331101665,1720081841811,-500.0,0.00014178,2]
[331101666,1720081841821,-500.0,0.00014178,2]
[331101667,1720081841831,-500.0,0.00014178,2]
[331101668,1720081841841,-500.0,0.00014178,2]
[331101669,1720081841851,-500.0,0.00014178,2]
[331101670,1720081841861,-500.0,0.00014178,2]
[331101671,1720081841870,-508.59456744,0.00014178,2]
[331101672,1720081841880,-503.5,0.00014178,2]
[331101673,1720081841889,-468.58421245,0.00014178,2]
[331101674,1720081841899,-504.08738477,0.00014178,2]
[331101675,1720081841909,-500.0,0.00014178,2]
[331101676,1720081841920,-525.41537567,0.00014178,2]
[331101677,1720081841930,-500.0,0.00014178,2]
[331101678,1720081841940,-500.0,0.00014178,2]
[331101679,1720081841950,-500.0,0.00014178,2]
[331101680,1720081841963,-4247.82,0.00014178,2]
[331101681,1720081841972,-509.94832172,0.00014178,2]
[331101682,1720081841982,-196.83503195,0.00014178,2]
[331101683,1720081841992,-506.63905496,0.00014178,2]
[331101684,1720081842002,-500.0,0.00014178,2]
[331101685,1720081842012,-507.65700546,0.00014178,2]
[331101686,1720081842023,-500.0,0.00014178,2]
[331101687,1720081842033,-500.0,0.00014178,2]
[331101688,1720081842044,-504.67055399,0.00014178,2]
[331101689,1720081842055,-571.17164899,0.00014178,2]
[331101690,1720081842065,-197.22880303,0.00014178,2]
[331101691,1720081842075,-502.57959473,0.00014178,2]
[331101692,1720081842086,-500.0,0.00014179,2]
[331101693,1720081842096,-500.0,0.00014179,2]
[331101694,1720081842105,-500.0,0.00014179,2]
[331101695,1720081842115,-500.0,0.00014179,2]
[331101696,1720081842125,-500.0,0.00014179,2]
[331101697,1720081842134,-500.0,0.00014179,2]
[331101698,1720081842144,-500.0,0.00014179,2]
[331101699,1720081842154,-500.0,0.00014179,2]
[331101700,1720081842163,-505.12072516,0.00014179,2]
[331101701,1720081842173,-500.0,0.00014179,2]
[331101702,1720081842182,-505.07802294,0.00014179,2]
[331101703,1720081842192,-500.0,0.00014179,2]
[331101704,1720081842202,-515.75,0.00014179,2]
[331101705,1720081842220,-500.0,0.00014179,2]
[331101706,1720081842231,-500.0,0.00014179,2]
[331101707,1720081842242,-500.0,0.00014179,2]
[331101708,1720081842254,-500.0,0.00014179,2]
[331101709,1720081842264,-527.59,0.00014179,2]
[331101710,1720081842274,-500.0,0.00014179,2]
[331101711,1720081842285,-500.0,0.00014179,2]
[331101712,1720081842295,-500.0,0.00014179,2]
[331101713,1720081842306,-500.0,0.00014179,2]
[331101714,1720081842315,-500.0,0.00014179,2]
[331101715,1720081842326,-646.15,0.00014179,2]
[331101716,1720081842336,-500.0,0.00014179,2]
[331101717,1720081842347,-500.0,0.00014179,2]
[331101718,1720081842356,-500.0,0.00014179,2]
[331101719,1720081842367,-500.0,0.00014179,2]
[331101720,1720081842377,-500.0,0.00014179,2]
[331101721,1720081842387,-500.0,0.00014179,2]
[331101722,1720081842398,-654.89,0.00014179,2]
[331101723,1720081842407,-500.0,0.00014179,2]
[331101724,1720081842416,-500.0,0.00014179,2]
[331101725,1720081842426,-509.9,0.00014179,2]
[331101726,1720081842437,-500.0,0.00014179,2]
[331101727,1720081842447,-500.0,0.00014179,2]
[331101728,1720081842461,-500.0,0.00014179,2]
[331101729,1720081842477,-500.0,0.00014179,2]
[331101730,1720081842487,-500.0,0.00014179,2]
[331101731,1720081842497,-505.94327232,0.00014179,2]
[331101732,1720081842509,-500.0,0.00014179,2]
[331101733,1720081842523,-500.0,0.00014182,2]
[331101734,1720081842533,-500.0,0.00014182,2]
[331101735,1720081842542,-717.89,0.00014182,2]
[331101736,1720081842552,-500.0,0.00014182,2]
[331101737,1720081842563,-500.0,0.00014182,2]
[331101738,1720081842573,-513.70518318,0.00014183,2]
[331101739,1720081842583,-500.0,0.00014183,2]
[331101740,1720081842593,-505.56273882,0.00014183,2]
[331101741,1720081842603,-500.0,0.00014183,2]
[331101742,1720081842614,-500.0,0.00014183,2]
[331101743,1720081842624,-500.0,0.00014183,2]
[331101744,1720081842635,-504.27613205,0.00014183,2]
[331101745,1720081842646,-500.0,0.00014183,2]
[331101746,1720081842657,-500.0,0.00014183,2]
[331101747,1720081842667,-506.92412009,0.00014183,2]
[331101748,1720081842679,-556.55656625,0.00014183,2]
[331101749,1720081842690,-500.0,0.00014183,2]
[331101750,1720081842700,-500.0,0.00014183,2]
[331101751,1720081842714,-500.0,0.00014183,2]
[331101752,1720081842725,-500.0,0.00014183,2]
[331101753,1720081842735,-507.47065552,0.00014183,2]
[331101754,1720081842746,-500.0,0.00014183,2]
[331101755,1720081842757,-500.0,0.00014183,2]
[331101756,1720081842769,-500.0,0.00014183,2]
[331101757,1720081842779,-509.33519276,0.00014183,2]
[331101758,1720081842790,-506.03210743,0.00014183,2]
[331101759,1720081842800,-500.0,0.00014183,2]
[331101760,1720081842811,-511.82,0.00014183,2]
[331101761,1720081842820,-500.0,0.00014183,2]
[331101762,1720081842830,-500.0,0.00014183,2]
[331101763,1720081842840,-500.0,0.00014183,2]
[331101764,1720081842851,-500.0,0.00014183,2]
[331101765,1720081842862,-522.17575805,0.00014183,2]
[331101766,1720081842872,-500.0,0.00014183,2]
[331101767,1720081842882,-500.0,0.00014183,2]
[331101768,1720081842893,-500.0,0.00014183,2]
[331101769,1720081842903,-500.0,0.00014183,2]
[331101770,1720081842912,-437.8829996,0.00014183,2]
[331101771,1720081842922,-500.0,0.00014183,2]
[331101772,1720081842932,-500.0,0.00014183,2]
[331101773,1720081842943,-500.0,0.00014183,2]
[331101774,1720081842953,-500.0,0.00014183,2]
[331101775,1720081842967,-500.0,0.00014183,2]
[331101777,1720081842977,-483.36232367,0.00014183,2]
[331101779,1720081842987,-500.0,0.00014183,2]
[331101781,1720081842998,-500.0,0.00014183,2]
[331101783,1720081843008,-500.0,0.00014183,2]
[331101785,1720081843018,-500.0,0.00014183,2]
[331101786,1720081843028,-500.0,0.00014183,2]
[331101787,1720081843038,-500.0,0.00014183,2]
[331101788,1720081843048,-500.0,0.00014183,2]
[331101789,1720081843058,-500.0,0.00014183,2]
[331101790,1720081843069,-500.0,0.00014183,2]
[331101791,1720081843079,-500.0,0.00014183,2]
[331101792,1720081843089,-9489.08,0.00014184,2]
[331101793,1720081843099,-500.0,0.00014184,2]
[331101794,1720081843109,-504.09012666,0.00014184,2]
[331101795,1720081843119,-500.0,0.00014184,2]
[331101796,1720081843129,-500.0,0.00014184,2]
[331101797,1720081843140,-5223.49,0.00014184,2]
[331101798,1720081843151,-500.0,0.00014184,2]
[331101800,1720081843161,-958.6,0.00014184,2]
[331101801,1720081843171,-500.0,0.00014184,2]
[331101802,1720081843181,-618.9,0.00014191,2]
[331101803,1720081843191,-5455.72,0.00014191,2]
[331101804,1720081843203,-2902.08,0.00014191,2]
[331101805,1720081843222,-794.65,0.00014191,2]
[331101807,1720081843232,-1048.86875086,0.00014213,2]
[331101809,1720081843243,-1048.86875086,0.00014282,2]
[331101811,1720081843257,-35395.9148858,0.00014341,2]
[331101814,1720081843268,-1133.56313975,0.00014347,2]
[331101817,1720081843278,-1048.86875086,0.00014351,2]
[331101820,1720081843289,-150.0,0.00014409,2]
[331101822,1720081843299,-35395.9148858,0.00014441,2]
[331101824,1720081843309,-500.0,0.00014442,2]
[331101825,1720081843319,-505.63436566,0.00014442,2]
[331101826,1720081843329,-314.80100439,0.00014442,2]
[331101827,1720081843348,-35081.11388141,0.00014442,2]
[331101828,1720081843359,-500.0,0.00014445,2]
[331101829,1720081843370,-2157.66,0.00014445,2]
[331101830,1720081843380,-576.1,0.00014445,2]
[331101831,1720081843390,-13195.12,0.00014445,2]
[331101832,1720081843401,-1457.52,0.00014445,2]
[331101833,1720081843411,-2650.42,0.00014445,2]
[331101843,1720081843535,-625.2,0.00014446,2]
[331101844,1720081843545,-500.0,0.00014446,2]
[331101845,1720081843555,-1887.95,0.00014446,2]
[331101846,1720081843564,-2433.82,0.00014446,2]
[331101847,1720081843574,-1269.34,0.00014446,2]
[331101848,1720081843584,-500.0,0.00014446,2]
[331101849,1720081843594,-1047.58,0.00014446,2]
[331101850,1720081843603,-500.0,0.00014446,2]
[331101851,1720081843613,-4769.36,0.00014446,2]
[331101852,1720081843623,-500.0,0.00014446,2]
[331101853,1720081843633,-500.0,0.00014446,2]
[331101854,1720081843643,-500.0,0.00014446,2]
[331101855,1720081843653,-1174.99,0.00014446,2]
[331101856,1720081843664,-1006.18,0.00014446,2]
[331101857,1720081843674,-35395.9148858,0.00014448,2]
[331101858,1720081843684,-500.0,0.00014451,2]
[331101859,1720081843694,-1032.18,0.00014451,2]
[331101860,1720081843704,-500.0,0.00014451,2]
[331101861,1720081843725,-500.0,0.00014451,2]
[331101862,1720081843735,-1302.87,0.00014451,2]
[331101863,1720081843744,-500.0,0.00014451,2]
[331101864,1720081843753,-500.0,0.00014451,2]
[331101865,1720081843763,-799.56,0.00014451,2]
[331101866,1720081843772,-1179.4,0.00014451,2]
[331101867,1720081843781,-500.0,0.00014451,2]
[331101868,1720081843791,-500.0,0.00014451,2]
[331101869,1720081843800,-696.5,0.00014451,2]
[331101870,1720081843809,-545.92,0.00014451,2]
[331101871,1720081843819,-600.79,0.00014451,2]
[331101872,1720081843828,-500.0,0.00014451,2]
[331101873,1720081843837,-500.0,0.00014451,2]
[331101874,1720081843846,-500.0,0.00014451,2]
[331101875,1720081843856,-447.1217842,0.00014451,2]
[331101876,1720081843866,-500.0,0.00014451,2]
[331101877,1720081843876,-500.0,0.00014451,2]
[331101878,1720081843886,-500.0,0.00014451,2]
[331101879,1720081843896,-556.04,0.00014451,2]
[331101880,1720081843906,-560.01,0.00014451,2]
[331101881,1720081843915,-500.0,0.00014451,2]
[331101882,1720081843925,-500.0,0.00014451,2]
[331101883,1720081843934,-500.0,0.00014451,2]
[331101884,1720081843944,-500.0,0.00014451,2]
[331101885,1720081843954,-500.0,0.00014451,2]
[331101886,1720081843968,-4913.11,0.00014451,2]
[331101887,1720081843978,-500.0,0.00014451,2]
[331101888,1720081843987,-500.0,0.00014451,2]
[331101889,1720081843996,-713.73,0.00014451,2]
[331101890,1720081844005,-500.0,0.00014451,2]
[331101891,1720081844015,-500.0,0.00014451,2]
[331101892,1720081844024,-814.41,0.00014451,2]
[331101893,1720081844033,-500.0,0.00014451,2]
[331101894,1720081844042,-500.0,0.00014451,2]
[331101895,1720081844051,-500.0,0.00014451,2]
[331101896,1720081844060,-500.0,0.00014451,2]
[331101897,1720081844069,-500.0,0.00014451,2]
[331101898,1720081844079,-362.7148292,0.00014451,2]
[331101899,1720081844088,-500.0,0.00014451,2]
[331101900,1720081844097,-500.0,0.00014451,2]
[331101901,1720081844106,-500.0,0.00014451,2]
[331101902,1720081844116,-500.0,0.00014452,2]
[331101903,1720081844125,-500.0,0.00014452,2]
[331101904,1720081844134,-500.0,0.00014452,2]
[331101905,1720081844143,-500.0,0.00014452,2]
[331101906,1720081844153,-500.0,0.00014452,2]
[331101907,1720081844162,-574.3,0.00014452,2]
[331101908,1720081844172,-566.73,0.00014452,2]
[331101909,1720081844181,-500.0,0.00014452,2]
[331101910,1720081844190,-655.68,0.00014452,2]
[331101911,1720081844199,-500.0,0.00014452,2]
[331101912,1720081844212,-500.0,0.00014452,2]
[331101913,1720081844221,-500.0,0.00014452,2]
[331101914,1720081844231,-500.0,0.00014452,2]
[331101915,1720081844240,-509.50256274,0.00014452,2]
[331101916,1720081844250,-500.0,0.00014452,2]
[331101917,1720081844260,-500.0,0.00014452,2]
[331101918,1720081844270,-500.0,0.00014452,2]
[331101919,1720081844279,-500.0,0.00014452,2]
[331101920,1720081844289,-500.0,0.00014452,2]
[331101921,1720081844298,-500.0,0.00014452,2]
[331101922,1720081844308,-500.0,0.00014452,2]
[331101923,1720081844317,-9042.71,0.00014452,2]
[331101924,1720081844327,-500.0,0.00014452,2]
[331101925,1720081844336,-500.0,0.00014452,2]
[331101926,1720081844345,-514.79414028,0.00014452,2]
[331101927,1720081844355,-500.0,0.00014452,2]
[331101928,1720081844364,-500.0,0.00014452,2]
[331101929,1720081844373,-500.0,0.00014452,2]
[331101930,1720081844383,-500.0,0.00014452,2]
[331101931,1720081844391,-500.0,0.00014452,2]
[331101932,1720081844401,-500.0,0.00014452,2]
[331101933,1720081844411,-500.0,0.00014452,2]
[331101934,1720081844420,-500.0,0.00014452,2]
[331101935,1720081844430,-500.0,0.00014452,2]
[331101936,1720081844439,-500.0,0.00014452,2]
[331101937,1720081844449,-500.0,0.00014452,2]
[331101938,1720081844462,-799.86,0.00014452,2]
[331101939,1720081844478,-500.0,0.00014452,2]
[331101940,1720081844487,-500.0,0.00014452,2]
[331101941,1720081844497,-500.0,0.00014452,2]
[331101942,1720081844507,-500.0,0.00014452,2]
[331101943,1720081844516,-500.0,0.00014452,2]
[331101944,1720081844527,-500.0,0.00014452,2]
[331101945,1720081844537,-500.0,0.00014452,2]
[331101946,1720081844547,-506.00537263,0.00014452,2]
[331101947,1720081844557,-500.0,0.00014452,2]
[331101948,1720081844567,-500.0,0.00014452,2]
[331101949,1720081844576,-500.0,0.00014452,2]
[331101950,1720081844586,-717.89,0.00014452,2]
[331101951,1720081844595,-500.0,0.00014452,2]
[331101952,1720081844604,-500.0,0.00014452,2]
[331101953,1720081844614,-506.98760307,0.00014452,2]
[331101954,1720081844624,-500.0,0.00014452,2]
[331101955,1720081844633,-500.0,0.00014452,2]
[331101956,1720081844643,-861.67,0.00014452,2]
[331101957,1720081844652,-500.0,0.00014452,2]
[331101958,1720081844662,-500.0,0.00014452,2]
[331101959,1720081844671,-500.0,0.00014452,2]
[331101960,1720081844680,-500.0,0.00014452,2]
[331101961,1720081844690,-456.01048341,0.00014452,2]
[331101962,1720081844699,-500.0,0.00014452,2]
[331101963,1720081844711,-501.72524718,0.00014452,2]
[331101964,1720081844720,-500.0,0.00014452,2]
[331101965,1720081844729,-500.0,0.00014452,2]
[331101966,1720081844738,-500.0,0.00014452,2]
[331101967,1720081844747,-500.0,0.00014452,2]
[331101968,1720081844756,-500.0,0.00014452,2]
[331101969,1720081844766,-500.0,0.00014452,2]
[331101971,1720081844776,-500.0,0.00014452,2]
[331101973,1720081844785,-504.73000229,0.00014452,2]
[331101975,1720081844795,-500.0,0.00014452,2]
[331101977,1720081844804,-500.0,0.00014452,2]
[331101979,1720081844813,-220.77620064,0.00014452,2]
[331101980,1720081844822,-500.0,0.00014452,2]
[331101982,1720081844831,-500.0,0.00014452,2]
[331101984,1720081844841,-418.94298943,0.00014452,2]
[331101986,1720081844850,-191.02253911,0.00014452,2]
[331101988,1720081844859,-561.68146604,0.00014452,2]
[331101989,1720081844868,-500.0,0.00014452,2]
[331101990,1720081844877,-199.22392977,0.00014452,2]
[331101992,1720081844887,-500.0,0.00014452,2]
[331101993,1720081844896,-876.05,0.00014452,2]
[331101995,1720081844905,-500.0,0.00014452,2]
[331101996,1720081844914,-4247.82,0.00014452,2]
[331101998,1720081844923,-504.05409318,0.00014452,2]
[331102000,1720081844933,-500.0,0.00014452,2]
[331102002,1720081844942,-500.0,0.00014452,2]
[331102004,1720081844952,-500.0,0.00014452,2]
[331102006,1720081844964,-500.0,0.00014453,2]
[331102008,1720081844973,-500.0,0.00014453,2]
[331102009,1720081844983,-500.0,0.00014453,2]
[331102011,1720081844992,-500.0,0.00014453,2]
[331102012,1720081845001,-589.78587083,0.00014453,2]
[331102014,1720081845011,-621.75839723,0.00014453,2]
[331102016,1720081845019,-515.75,0.00014453,2]
[331102017,1720081845029,-500.0,0.00014453,2]
[331102019,1720081845038,-500.0,0.00014453,2]
[331102020,1720081845047,-527.59,0.00014453,2]
[331102021,1720081845056,-500.0,0.00014453,2]
[331102022,1720081845065,-454.67725143,0.00014453,2]
[331102023,1720081845074,-500.0,0.00014453,2]
[331102024,1720081845083,-646.15,0.00014453,2]
[331102025,1720081845091,-500.0,0.00014453,2]
[331102026,1720081845100,-500.0,0.00014453,2]
[331102027,1720081845109,-500.0,0.00014453,2]
[331102028,1720081845118,-500.0,0.00014453,2]
[331102029,1720081845126,-500.0,0.00014453,2]
[331102030,1720081845135,-500.0,0.00014453,2]
[331102031,1720081845144,-654.89,0.00014453,2]
[331102032,1720081845153,-500.0,0.00014453,2]
[331102033,1720081845161,-500.0,0.00014453,2]
[331102034,1720081845171,-509.9,0.00014453,2]
[331102035,1720081845179,-500.0,0.00014453,2]
[331102036,1720081845188,-500.0,0.00014453,2]
[331102037,1720081845197,-500.0,0.00014453,2]
[331102038,1720081845206,-500.0,0.00014453,2]
[331102039,1720081845217,-500.0,0.00014453,2]
[331102040,1720081845226,-500.0,0.00014453,2]